bitfinex/quotes_SOLUSD_20240603
["timestamp","ask_amount","ask_price","bid_price","bid_amount"]
[1717379052652,6.5629,163.5,163.47,0.8130954]
[1717379052855,2.2631,163.49,163.47,0.8130954]
[1717379053054,2.2632,163.48,163.47,0.8130954]
[1717379055957,2.263,163.5,163.47,0.8130954]
[1717379056158,2.2629,163.51,163.47,0.8130954]
[1717379056469,2.2629,163.51,163.47,7.3181954]
[1717379056666,2.263,163.5,163.47,0.8130954]
[1717379056838,6.563,163.5,163.47,0.8130954]
[1717379058345,2.263,163.5,163.47,0.8130954]
[1717379058555,2.2628,163.51,163.47,7.4433954]
[1717379059166,2.2626,163.53,163.48,2.2631]
[1717379059337,2.2626,163.53,163.47,11.7433954]
[1717379059338,4.3,163.53,163.47,7.4433954]
[1717379059542,2.2628,163.52,163.47,9.7066954]
[1717379059849,2.2628,163.52,163.48,6.6303]
[1717379060057,2.2627,163.53,163.48,6.6303]
[1717379060269,2.2627,163.53,163.49,6.6303]
[1717379060482,6.5627,163.53,163.49,6.6303]
[1717379061147,2.2627,163.53,163.49,6.6303]
[1717379062875,4.96541191,163.56,163.5,6.5516]
[1717379063159,2.2621,163.57,163.53,10.8516]
[1717379063387,2.262,163.57,163.54,4.3]
[1717379064657,2.2619,163.58,163.54,4.3]
[1717379065567,2.2619,163.58,163.54,10.6198]
[1717379066163,2.2619,163.58,163.55,4.3]
[1717379066955,2.2617,163.59,163.55,4.3]
[1717379067152,2.2617,163.59,163.56,22.9526]
[1717379067374,2.2617,163.59,163.54,2.2624]
[1717379067375,4.3,163.6,163.59,2.2617]
[1717379067570,4.3,163.6,163.59,10.6198]
[1717379067969,2.2612,163.63,163.59,10.6198]
[1717379068352,4.3,163.66,163.55,6.3198]
[1717379068557,2.2618,163.59,163.55,4.3]
[1717379068758,2.2618,163.59,163.54,4.3]
[1717379069475,2.2618,163.59,163.54,10.6198]
[1717379070157,2.2616,163.6,163.55,4.3]
[1717379070475,2.2616,163.6,163.56,4.3]
[1717379070770,2.2615,163.61,163.56,4.3]
[1717379070971,2.2615,163.61,163.55,2.2622]
[1717379071174,2.2616,163.6,163.54,8.5822]
[1717379071760,2.2616,163.6,163.55,4.3]
[1717379072169,2.2616,163.6,163.54,8.5822]
[1717379072478,2.2617,163.59,163.55,4.3]
[1717379073080,4.3,163.61,163.55,4.3]
[1717379073081,2.2616,163.6,163.55,4.3]
[1717379074891,4.5224,163.63,163.54,2.2624]
[1717379074892,2.2617,163.59,163.54,2.2624]
[1717379075192,2.2617,163.59,163.55,4.3]
[1717379075972,2.2617,163.59,163.54,6.5624]
[1717379076160,4.3,163.58,163.52,6.5626]
[1717379076356,6.5619,163.58,163.52,6.5626]
[1717379076577,2.262,163.57,163.52,6.5626]
[1717379077086,6.5619,163.58,163.52,6.5626]
[1717379077586,2.262,163.57,163.52,6.5626]
[1717379079266,6.5619,163.58,163.52,6.5626]
[1717379080307,17.2,163.68,163.49,6.104]
[1717379080308,4.3,163.55,163.49,4.3]
[1717379080468,2.2625,163.54,163.49,4.3]
[1717379080664,2.2625,163.54,163.48,6.5631]
[1717379081321,2.2625,163.54,163.49,2.2631]
[1717379081495,2.2623,163.55,163.49,2.2631]
[1717379082086,4.3,163.54,163.48,4.3]
[1717379082289,4.3,163.54,163.47,5.1130954]
[1717379082608,4.3,163.52,163.47,0.8130954]
[1717379082920,2.2628,163.51,163.47,0.8130954]
[1717379083109,6.5627,163.52,163.47,0.8130954]
[1717379083321,2.2627,163.52,163.47,0.8130954]
[1717379083489,6.5627,163.52,163.47,0.8130954]
[1717379083887,6.4652,163.57,163.49,2.263]
[1717379084232,2.2624,163.54,163.49,4.3]
[1717379084389,2.2624,163.54,163.48,6.5631]
[1717379086833,2.2624,163.54,163.49,4.3]
[1717379088117,2.2624,163.54,163.48,6.5632]
[1717379088630,4.3,163.55,163.48,6.5632]
[1717379088631,2.2626,163.53,163.48,6.5632]
[1717379089418,6.5626,163.53,163.47,9.0843954]
[1717379089635,6.5626,163.53,163.47,13.3843954]
[1717379089836,2.2626,163.53,163.48,4.3]
[1717379090436,4.3,163.54,163.49,2.2631]
[1717379090642,6.5624,163.54,163.48,6.5632]
[1717379090813,2.2624,163.54,163.48,6.5632]
[1717379092718,2.2624,163.54,163.48,2.2632]
[1717379096131,4.3,163.55,163.48,2.2632]
[1717379096340,2.2625,163.54,163.48,2.2632]
[1717379096648,2.2625,163.54,163.49,2.2631]
[1717379097428,2.2625,163.53,163.48,2.2632]
[1717379098353,4.3,163.54,163.48,2.2632]
[1717379098354,6.5624,163.54,163.48,2.2632]
[1717379099642,4.3,163.54,163.47,9.0842954]
[1717379099838,4.3,163.54,163.48,4.3]
[1717379099839,2.2626,163.53,163.48,4.3]
[1717379100151,2.2626,163.53,163.48,6.5632]
[1717379100452,2.2624,163.54,163.48,6.5632]
[1717379100635,6.5624,163.54,163.48,6.5632]
[1717379101458,6.5624,163.54,163.48,2.2632]
[1717379101755,6.5628,163.52,163.47,0.8130954]
[1717379101930,2.2628,163.51,163.47,0.8130954]
[1717379102656,2.2631,163.49,163.47,0.8130954]
[1717379102831,4.3,163.5,163.47,0.8130954]
[1717379103233,2.2632,163.48,163.47,0.8130954]
[1717379104156,6.5631,163.49,163.47,0.8130954]
[1717379104536,2.2632,163.48,163.47,0.8130954]
[1717379104776,6.7873,163.55,163.47,0.8130954]
[1717379104943,2.2627,163.52,163.47,0.8130954]
[1717379105256,2.2628,163.51,163.47,0.8130954]
[1717379105761,6.5628,163.51,163.47,0.8130954]
[1717379105929,2.263,163.5,163.47,0.8130954]
[1717379106771,2.2629,163.51,163.47,0.8130954]
[1717379107454,2.2629,163.51,163.47,5.1130954]
[1717379107935,2.2623,163.55,163.5,4.3]
[1717379108274,9.11198344,163.56,163.5,4.3]
[1717379108451,4.3,163.56,163.5,4.3]
[1717379108837,4.3,163.56,163.49,2.263]
[1717379109033,2.2625,163.54,163.49,4.3]
[1717379109336,2.2625,163.54,163.49,10.6702]
[1717379109553,4.3,163.55,163.49,6.3702]
[1717379109751,2.2624,163.54,163.49,10.6702]
[1717379110154,2.2624,163.54,163.5,4.3]
[1717379110660,2.2623,163.55,163.5,4.3]
[1717379111878,11.286877,163.59,163.51,6.2578]
[1717379112085,2.2621,163.56,163.54,4.3]
[1717379112254,2.2621,163.56,163.53,4.3]
[1717379112767,6.2578,163.59,163.52,8.5204]
[1717379113075,123.77944361,163.68,163.57,2.2619]
[1717379113265,2.2615,163.61,163.58,4.3]
[1717379113653,4.3,163.65,163.58,4.3]
[1717379113852,2.2612,163.63,163.58,4.3]
[1717379114056,8.8232,163.65,163.6,4.3]
[1717379114351,2.2612,163.63,163.59,4.3]
[1717379114819,2.2609,163.65,163.6,4.3]
[1717379114951,2.2609,163.65,163.61,4.3]
[1717379115773,4.3,163.67,163.61,4.3]
[1717379115983,17.864,163.69,163.63,4.3]
[1717379116163,2.2606,163.67,163.61,2.2614]
[1717379116362,2.2606,163.67,163.63,4.3]
[1717379116967,2.2606,163.67,163.61,2.2614]
[1717379116968,13.564,163.69,163.6,36.62]
[1717379117273,13.564,163.69,163.66,4.3]
[1717379117462,13.564,163.69,163.66,10.4561]
[1717379117861,13.564,163.69,163.68,6.5605]
[1717379118376,6.5088,163.77,163.68,6.5605]
[1717379118377,2.2595,163.75,163.69,2.2603]
[1717379118578,2.2594,163.76,163.71,4.3]
[1717379118768,2.2595,163.75,163.71,10.639]
[1717379119084,2.2591,163.79,163.74,4.3]
[1717379119254,4.5167,163.84,163.75,4.3]
[1717379119453,4.3,163.82,163.76,4.3]
[1717379119681,2.2589,163.8,163.76,4.3]
[1717379120194,2.259,163.79,163.75,4.3]
[1717379120485,6.7754,163.83,163.69,36.62]
[1717379120684,26.2335,163.84,163.73,2.2597]
[1717379120685,2.259,163.79,163.73,2.2597]
[1717379120984,2.2591,163.78,163.74,4.3]
[1717379121283,4.5169,163.83,163.7,36.62]
[1717379121484,2.2592,163.78,163.74,4.3]
[1717379121860,2.2592,163.78,163.72,2.2598]
[1717379121861,2.2592,163.77,163.72,2.2599]
[1717379122059,2.2592,163.77,163.73,6.1535]
[1717379123292,13.924507,163.84,163.74,36.62]
[1717379123461,2.2588,163.8,163.75,2.2595]
[1717379123666,2.2587,163.81,163.75,8.413]
[1717379123880,4.5164,163.85,163.76,2.2593]
[1717379124061,2.2586,163.82,163.75,42.7735]
[1717379124262,13.3868,163.86,163.77,6.3671]
[1717379124461,2.2581,163.85,163.77,12.4711]
[1717379124674,2.258,163.86,163.8,2.2588]
[1717379124897,6.222,163.9,163.77,6.3671]
[1717379125074,2.258,163.86,163.8,2.2588]
[1717379125261,2.2581,163.85,163.8,8.4275]
[1717379125458,2.2581,163.85,163.8,6.1687]
[1717379125700,16.2862,163.91,163.82,6.1687]
[1717379125864,16.2862,163.91,163.82,8.4272]
[1717379126065,2.2578,163.88,163.82,8.4272]
[1717379126286,9.0298,163.91,163.79,2.2589]
[1717379126477,2.2583,163.84,163.78,17.6415]
[1717379126795,4.5153,163.89,163.8,6.1687]
[1717379127272,4.5153,163.89,163.76,6.1364]
[1717379127273,2.2587,163.81,163.76,6.1364]
[1717379127467,12.9,163.85,163.72,2.2599]
[1717379127670,4.5174,163.81,163.71,8.3963]
[1717379127903,0.34,163.8,163.7,8.3966]
[1717379128071,2.2597,163.74,163.7,6.1364]
[1717379128364,11.295,163.79,163.65,16.2781]
[1717379128365,6.7773,163.78,163.65,16.2781]
[1717379128564,2.2601,163.71,163.65,24.6753]
[1717379128789,2.2602,163.7,163.65,6.1364]
[1717379129572,9.038,163.76,163.65,8.3972]
[1717379129761,9.038,163.76,163.65,6.1364]
[1717379129762,2.2602,163.7,163.65,6.1364]
[1717379129966,2.26,163.72,163.65,6.1364]
[1717379130165,2.2595,163.75,163.69,2.2603]
[1717379130704,0.17,163.76,163.67,2.2605]
[1717379130998,2.4297,163.74,163.67,2.2605]
[1717379131172,2.2598,163.73,163.67,2.2605]
[1717379131372,0.17,163.74,163.65,6.1364]
[1717379131586,0.34,163.75,163.65,6.1364]
[1717379131795,2.2602,163.7,163.65,6.1364]
[1717379132012,0.34,163.75,163.67,2.2606]
[1717379132302,2.2596,163.74,163.68,2.2603]
[1717379132474,2.2596,163.74,163.65,42.7564]
[1717379132672,2.2598,163.73,163.68,2.2604]
[1717379132877,2.2598,163.73,163.67,2.2606]
[1717379133201,2.2598,163.73,163.65,42.7564]
[1717379133202,2.2599,163.72,163.66,2.2606]
[1717379133503,2.2601,163.71,163.66,2.2606]
[1717379133676,2.2599,163.72,163.66,8.8699]
[1717379134698,2.2598,163.73,163.67,2.2606]
[1717379136074,2.2598,163.73,163.68,2.2605]
[1717379136396,2.2598,163.73,163.68,8.347]
[1717379137072,2.2598,163.73,163.68,6.0865]
[1717379137477,4.5191,163.75,163.66,6.104]
[1717379137693,2.26,163.72,163.66,6.104]
[1717379137877,2.2601,163.71,163.65,2.2608]
[1717379138101,2.2599,163.72,163.66,2.2607]
[1717379140405,2.2599,163.72,163.67,2.2606]
[1717379142209,9.0373,163.77,163.68,2.2604]
[1717379142210,2.2598,163.73,163.68,2.2604]
[1717379142992,25.1333,163.8,163.66,41.1414]
[1717379143197,2.2594,163.76,163.71,2.26]
[1717379143407,2.2592,163.77,163.71,2.2599]
[1717379144106,2.2594,163.76,163.71,2.2599]
[1717379144405,2.2594,163.76,163.71,8.548]
[1717379144815,2.2593,163.77,163.71,8.548]
[1717379145016,2.2593,163.77,163.72,8.548]
[1717379145397,2.2593,163.77,163.72,6.2881]
[1717379145998,2.2594,163.76,163.72,6.2881]
[1717379146706,2.2594,163.76,163.71,2.26]
[1717379147016,2.2595,163.75,163.7,8.5585]
[1717379147215,2.2594,163.76,163.71,8.5584]
[1717379148612,2.2595,163.75,163.71,6.2984]
[1717379149238,4.5179,163.79,163.71,6.2984]
[1717379149405,2.2595,163.75,163.71,6.2984]
[1717379149603,2.2594,163.76,163.71,6.2984]
[1717379150229,2.2594,163.76,163.71,8.5584]
[1717379151631,2.2593,163.77,163.71,18.6388]
[1717379152007,2.2594,163.76,163.71,24.9196]
[1717379152439,2.2595,163.75,163.71,6.2808]
[1717379152958,2.2594,163.76,163.71,8.5408]
[1717379156540,2.2594,163.76,163.72,6.1762]
[1717379157632,2.2593,163.77,163.72,8.4361]
[1717379158329,4.5179,163.79,163.72,6.1762]
[1717379158528,2.2595,163.75,163.7,2.2601]
[1717379159336,4.5185,163.77,163.69,6.104]
[1717379159549,0.17,163.76,163.67,22.5408]
[1717379159842,2.2597,163.74,163.69,2.2603]
[1717379160226,2.2597,163.74,163.69,8.4223]
[1717379160425,2.2597,163.74,163.7,2.2602]
[1717379160855,2.2597,163.74,163.69,8.4223]
[1717379161943,2.2601,163.71,163.67,2.2606]
[1717379162151,2.2601,163.71,163.66,2.2607]
[1717379162343,4.5194,163.74,163.67,2.2606]
[1717379162344,2.26,163.72,163.67,2.2606]
[1717379162535,2.26,163.72,163.68,2.2605]
[1717379162847,2.2594,163.76,163.68,6.6506]
[1717379163036,2.2594,163.76,163.69,6.11]
[1717379163237,2.2595,163.75,163.71,2.26]
[1717379163426,2.2596,163.74,163.7,2.2601]
[1717379164441,2.2595,163.75,163.7,2.2601]
[1717379164842,2.2595,163.75,163.69,6.11]
[1717379164843,2.2595,163.75,163.67,47.6193]
[1717379165026,2.2594,163.76,163.68,10.9992]
[1717379165229,2.2594,163.76,163.68,47.6192]
[1717379165432,4.5177,163.8,163.69,47.2506]
[1717379165433,2.2593,163.77,163.69,47.2506]
[1717379166058,2.2594,163.76,163.72,2.2598]
[1717379166556,2.2594,163.76,163.71,2.26]
[1717379166853,2.2594,163.76,163.71,8.7383]
[1717379167244,2.2595,163.75,163.71,6.4783]
[1717379167544,2.2595,163.75,163.68,6.11]
[1717379167753,2.2594,163.76,163.71,2.26]
[1717379168057,2.2594,163.76,163.71,6.56]
[1717379168243,2.2594,163.76,163.72,2.2599]
[1717379169450,2.2594,163.76,163.71,6.56]
[1717379171168,2.2594,163.76,163.72,4.3]
[1717379171532,2.2594,163.76,163.72,6.5599]
[1717379172861,2.2594,163.76,163.72,4.3]
[1717379173354,2.2594,163.76,163.71,6.56]
[1717379174057,2.2594,163.76,163.72,4.3]
[1717379174561,8.8185,163.77,163.67,43.1483]
[1717379174852,2.2595,163.75,163.7,6.5601]
[1717379175239,2.2595,163.75,163.71,2.26]
[1717379175444,2.2594,163.76,163.71,2.26]
[1717379178268,2.2593,163.77,163.71,6.411]
[1717379178445,2.2593,163.77,163.74,4.3]
[1717379178644,9.0353,163.81,163.77,2.2592]
[1717379178869,6.003,163.83,163.77,6.5591]
[1717379178870,2.2586,163.82,163.77,6.5591]
[1717379179056,2.2586,163.82,163.78,4.3]
[1717379179232,2.2584,163.84,163.79,2.2588]
[1717379179438,2.2584,163.84,163.8,4.3]
[1717379179938,4.3,163.86,163.8,6.5588]
[1717379180152,2.2583,163.84,163.8,4.3]
[1717379180743,2.2583,163.84,163.79,2.2589]
[1717379180952,2.2583,163.84,163.79,6.5589]
[1717379181149,2.2581,163.86,163.8,2.2587]
[1717379181363,2.2581,163.86,163.81,6.5586]
[1717379182063,2.2576,163.89,163.83,4.3]
[1717379182555,2.2577,163.88,163.83,4.3]
[1717379182951,2.2577,163.88,163.83,2.2583]
[1717379183150,2.2576,163.89,163.84,4.3]
[1717379184061,4.3,163.9,163.84,6.5582]
[1717379184445,4.3,163.91,163.84,6.5582]
[1717379184646,4.3,163.9,163.84,6.5582]
[1717379184864,2.2576,163.89,163.84,6.5582]
[1717379185766,2.2576,163.89,163.84,13.065]
[1717379186669,2.2576,163.89,163.85,4.3]
[1717379187361,2.2577,163.88,163.85,4.3]
[1717379187670,2.2578,163.87,163.84,10.8068]
[1717379187865,2.2578,163.87,163.84,6.5068]
[1717379188067,2.258,163.86,163.82,6.5585]
[1717379188268,2.258,163.86,163.82,2.2585]
[1717379188466,2.2581,163.85,163.8,8.7656]
[1717379188659,2.2584,163.83,163.77,36.67]
[1717379188855,2.2583,163.84,163.79,6.5589]
[1717379189261,4.3,163.82,163.75,6.5475]
[1717379189581,4.3,163.8,163.71,43.2175]
[1717379189765,4.3,163.8,163.73,4.3]
[1717379189948,2.259,163.79,163.74,2.2596]
[1717379190859,2.259,163.79,163.74,12.6696]
[1717379191749,4.5164,163.85,163.75,4.3]
[1717379191954,15.8053,163.87,163.74,12.7675]
[1717379191955,2.2584,163.83,163.74,49.4375]
[1717379192156,2.2584,163.83,163.78,2.2591]
[1717379192457,2.2584,163.83,163.77,2.2592]
[1717379192870,2.2585,163.82,163.77,2.2592]
[1717379193261,6.7737,163.87,163.74,113.4643]
[1717379193572,2.2584,163.84,163.75,43.12]
[1717379193968,2.2585,163.83,163.78,2.259]
[1717379194162,2.2585,163.83,163.75,43.12]
[1717379194163,2.2585,163.83,163.77,2.2592]
[1717379194370,2.2586,163.82,163.77,2.2592]
[1717379195772,2.2587,163.81,163.76,8.3693]
[1717379195982,2.2587,163.81,163.76,2.2593]
[1717379196952,6.7741,163.85,163.74,107.3545]
[1717379197158,2.2584,163.83,163.78,2.259]
[1717379198364,0.34,163.88,163.76,42.78]
[1717379198685,2.258,163.86,163.8,2.2587]
[1717379198867,2.2581,163.85,163.8,2.2587]
[1717379201491,2.2578,163.87,163.82,2.2584]
[1717379202289,2.258,163.86,163.82,2.2584]
[1717379202471,2.258,163.86,163.81,2.2586]
[1717379202865,2.2581,163.85,163.8,2.2588]
[1717379204883,2.258,163.86,163.81,2.2586]
[1717379208700,2.2581,163.85,163.81,2.2586]
[1717379208863,12.3472,163.89,163.77,6.3782]
[1717379208864,4.5158,163.87,163.77,6.3782]
[1717379209264,2.2585,163.83,163.78,2.259]
[1717379209590,2.2585,163.83,163.76,6.11]
[1717379209812,2.2586,163.82,163.78,2.2591]
[1717379210093,2.2587,163.81,163.77,2.2592]
[1717379210465,2.2586,163.82,163.77,2.2592]
[1717379210700,2.2584,163.83,163.78,2.2591]
[1717379211467,2.2583,163.84,163.79,2.2589]
[1717379212281,2.2583,163.84,163.8,2.2588]
[1717379212487,2.2582,163.85,163.8,2.2588]
[1717379214189,16.8624,163.89,163.8,2.2588]
[1717379214190,2.2583,163.84,163.8,2.2588]
[1717379215908,2.2582,163.85,163.8,2.2588]
[1717379218916,2.2582,163.85,163.81,2.2587]
[1717379219413,2.258,163.86,163.81,2.2587]
[1717379220024,2.258,163.86,163.81,6.5587]
[1717379220201,2.2581,163.85,163.81,6.5587]
[1717379220902,2.258,163.86,163.82,4.3]
[1717379221108,12.3472,163.89,163.83,2.2584]
[1717379221109,2.2579,163.87,163.83,2.2584]
[1717379221313,2.2578,163.88,163.84,2.2582]
[1717379221523,11.2861,163.92,163.85,6.5581]
[1717379221524,2.2574,163.9,163.85,6.5581]
[1717379221701,2.2574,163.91,163.86,2.2579]
[1717379222015,2.2574,163.91,163.86,6.5579]
[1717379222729,2.2574,163.9,163.86,6.5579]
[1717379223798,2.2574,163.9,163.86,2.2579]
[1717379224196,2.2573,163.92,163.87,2.2578]
[1717379224520,6.2425,163.94,163.87,6.1381]
[1717379224707,17.7863,163.98,163.89,2.2575]
[1717379225030,2.257,163.94,163.88,2.2577]
[1717379225211,4.5131,163.97,163.87,2.2578]
[1717379225517,2.257,163.93,163.88,2.2577]
[1717379225895,2.257,163.93,163.88,8.3958]
[1717379227213,2.2569,163.94,163.89,8.3957]
[1717379228117,2.2569,163.94,163.89,6.1381]
[1717379229337,2.2569,163.94,163.89,8.3957]
[1717379230313,2.2569,163.94,163.89,6.1381]
[1717379232511,2.2569,163.94,163.88,45.1241]
[1717379233113,2.2567,163.96,163.9,6.1964]
[1717379233322,2.2567,163.96,163.9,8.4537]
[1717379234417,2.2567,163.96,163.92,6.0688]
[1717379234824,2.2565,163.97,163.92,8.3259]
[1717379235342,2.2563,163.98,163.92,14.4359]
[1717379235545,2.2562,163.99,163.92,12.1788]
[1717379236028,2.2562,163.99,163.94,2.2569]
[1717379236828,2.2562,163.99,163.93,2.257]
[1717379237737,2.2564,163.98,163.93,2.257]
[1717379239045,2.2565,163.97,163.92,8.3671]
[1717379239237,2.2566,163.96,163.91,2.2572]
[1717379239436,2.2566,163.96,163.9,2.2574]
[1717379239640,2.2566,163.96,163.91,2.2572]
[1717379239942,2.2565,163.97,163.91,8.4229]
[1717379240151,2.2566,163.96,163.91,8.4229]
[1717379240349,2.2565,163.97,163.92,2.2571]
[1717379240725,2.2562,163.99,163.94,2.2568]
[1717379240945,2.2564,163.98,163.91,36.67]
[1717379241242,2.2564,163.98,163.93,2.257]
[1717379241622,16.6571,164.04,163.91,36.67]
[1717379241623,2.256,164.01,163.91,36.67]
[1717379241823,4.94028341,164.02,163.91,36.67]
[1717379242027,2.2562,163.99,163.93,2.2569]
[1717379242247,2.2563,163.98,163.93,2.2569]
[1717379242449,2.2562,163.99,163.94,2.2569]
[1717379243565,0.8130954,164.05,163.94,43.109]
[1717379243776,0.8130954,164.05,163.95,6.11]
[1717379243959,2.2559,164.01,163.96,2.2566]
[1717379244271,2.2559,164.01,163.96,8.4959]
[1717379244959,7.2187954,164.05,163.97,6.4553]
[1717379245160,3.0684954,164.05,164.0,2.256]
[1717379245480,0.8130954,164.05,163.98,6.11]
[1717379245837,2.2555,164.04,163.99,6.5462]
[1717379246263,0.8130954,164.05,164.01,2.2558]
[1717379246438,0.8130954,164.05,164.01,4.29]
[1717379246637,3.0684954,164.05,164.01,4.29]
[1717379246843,0.8130954,164.05,164.01,4.29]
[1717379247143,3.0684954,164.05,163.99,2.2562]
[1717379247368,3.0684954,164.05,164.0,4.29]
[1717379247539,3.0684954,164.05,164.0,10.2917]
[1717379247968,3.0684954,164.05,164.01,4.29]
[1717379248168,2.2556,164.04,164.01,4.29]
[1717379248462,2.2556,164.04,164.0,6.0017]
[1717379248661,3.0684954,164.05,164.0,6.0017]
[1717379248860,3.0684954,164.05,164.0,10.2917]
[1717379249567,0.8130954,164.05,164.01,4.29]
[1717379250975,0.8130954,164.05,164.02,4.29]
[1717379251181,0.8130954,164.05,164.03,4.29]
[1717379251665,0.8130954,164.05,164.04,4.29]
[1717379251856,0.8130954,164.05,164.04,10.8458]
[1717379254367,0.8130954,164.05,164.04,13.1013]
[1717379254974,0.8130954,164.05,164.04,28.447]
[1717379255183,0.8130954,164.05,164.04,30.267]
[1717379255395,0.8130954,164.05,164.04,34.557]
[1717379256681,0.8130954,164.05,164.04,19.2113]
[1717379257487,0.8130954,164.05,164.03,2.2556]
[1717379257691,0.8130954,164.05,164.03,6.5456]
[1717379257898,0.8130954,164.05,164.03,2.2556]
[1717379258081,0.8130954,164.05,164.02,4.29]
[1717379258284,0.8130954,164.05,164.04,2.2555]
[1717379258791,0.8130954,164.05,164.04,6.5455]
[1717379261288,0.8130954,164.05,164.04,2.2555]
[1717379261987,0.8130954,164.05,164.04,6.5455]
[1717379262389,0.8130954,164.05,164.04,2.2555]
[1717379265289,0.8130954,164.05,164.04,8.4462]
[1717379265907,0.8130954,164.05,164.04,13.39717201]
[1717379266111,0.8130954,164.05,164.04,70.9449]
[1717379266284,0.8130954,164.05,164.04,71.2849]
[1717379266606,0.8130954,164.05,164.04,135.7959]
[1717379270787,0.8130954,164.05,164.04,71.2849]
[1717379271001,0.8130954,164.05,164.04,45.4562]
[1717379271200,0.8130954,164.05,164.04,43.2155]
[1717379271604,0.8130954,164.05,164.04,6.5455]
[1717379271788,0.8130954,164.05,164.04,2.2555]
[1717379272106,0.8130954,164.05,164.04,6.5455]
[1717379272307,0.8130954,164.05,164.04,2.2555]
[1717379272498,0.8130954,164.05,164.04,6.5455]
[1717379273517,0.8130954,164.05,164.04,2.2555]
[1717379273696,0.8130954,164.05,164.04,6.5455]
[1717379274091,0.8130954,164.05,164.04,43.2155]
[1717379274290,0.8130954,164.05,164.04,49.3255]
[1717379275523,8.7977,164.17,164.08,2.2549]
[1717379275685,2.254,164.15,164.1,4.29]
[1717379276616,2.2541,164.14,164.1,4.29]
[1717379276821,2.2541,164.14,164.09,2.2548]
[1717379276999,2.2541,164.14,164.1,4.29]
[1717379277522,2.254,164.15,164.1,6.5447]
[1717379277834,2.254,164.15,164.11,4.29]
[1717379278323,2.254,164.15,164.1,6.5447]
[1717379279016,2.254,164.15,164.1,4.29]
[1717379279219,2.254,164.15,164.11,4.29]
[1717379279421,2.254,164.15,164.09,2.2548]
[1717379279599,2.254,164.15,164.1,4.29]
[1717379282034,4.29,164.17,164.1,4.29]
[1717379282035,2.2541,164.14,164.1,4.29]
[1717379282246,4.29,164.16,164.1,4.29]
[1717379282545,2.2545,164.12,164.06,2.2551]
[1717379282708,2.2545,164.12,164.06,6.5451]
[1717379283118,2.2545,164.12,164.07,4.29]
[1717379283333,2.2543,164.13,164.08,4.29]
[1717379283514,2.2543,164.13,164.09,4.29]
[1717379283729,4.29,164.15,164.09,4.29]
[1717379283730,2.2542,164.14,164.09,4.29]
[1717379283930,2.2543,164.13,164.09,4.29]
[1717379284703,2.2541,164.14,164.09,4.29]
[1717379284908,2.2541,164.14,164.1,4.29]
[1717379285445,2.2543,164.13,164.1,4.29]
[1717379285813,2.2543,164.13,164.09,4.29]
[1717379286406,4.5075,164.17,164.09,4.29]
[1717379286407,2.2541,164.14,164.09,6.5448]
[1717379286712,2.2541,164.15,164.1,4.29]
[1717379287311,2.2541,164.15,164.11,4.29]
[1717379287509,2.2539,164.16,164.11,4.29]
[1717379288935,2.2539,164.16,164.12,4.29]
[1717379289736,2.254,164.15,164.12,4.29]
[1717379291665,2.2538,164.17,164.12,4.29]